[Event "Live Chess"]
[Site "Chess.com"]
[Date "2024.06.02"]
[Round "-"]
[White "missedJariChance"]
[Black "Duke_of_Bebington"]
[Result "0-1"]
[WhiteElo "1353"]
[BlackElo "1639"]
[TimeControl "300"]
[EndTime "3:23:52 PDT"]
[Termination "Duke_of_Bebington won by resignation"]

1. b3 {[%clk 0:04:56.2]} 1... e5 {[%clk 0:04:52.6]} 2. Bb2 {[%clk 0:04:54.2]}
2... Nc6 {[%clk 0:04:52.1]} 3. Nf3 {[%clk 0:04:53]} 3... f6 {[%clk 0:04:48.2]}
4. e3 {[%clk 0:04:51.9]} 4... d5 {[%clk 0:04:46.9]} 5. c4 {[%clk 0:04:48.4]}
5... Be6 {[%clk 0:04:45.2]} 6. cxd5 {[%clk 0:04:44.9]} 6... Bxd5 {[%clk
0:04:42.6]} 7. Be2 {[%clk 0:04:43.2]} 7... Bd6 {[%clk 0:04:38.8]} 8. O-O {[%clk
0:04:37.8]} 8... Nge7 {[%clk 0:04:35.3]} 9. d4 {[%clk 0:04:34.6]} 9... e4 {[%clk
0:04:30.5]} 10. Nfd2 {[%clk 0:04:32.7]} 10... f5 {[%clk 0:04:10.9]} 11. Nc3
{[%clk 0:04:30.1]} 11... Bf7 {[%clk 0:04:04.7]} 12. Rc1 {[%clk 0:04:20.8]} 12...
Qd7 {[%clk 0:04:03]} 13. f3 {[%clk 0:04:05.9]} 13... Bg6 {[%clk 0:03:44.1]} 14.
fxe4 {[%clk 0:03:58.3]} 14... fxe4 {[%clk 0:03:42.7]} 15. Bh5 {[%clk 0:03:48.1]}
15... O-O-O {[%clk 0:03:37]} 16. Ndxe4 {[%clk 0:03:35.5]} 16... Bxh5 {[%clk
0:03:31.5]} 17. Qxh5 {[%clk 0:03:33.6]} 17... Ng6 {[%clk 0:03:12.7]} 18. Nxd6+
{[%clk 0:03:21.1]} 18... Qxd6 {[%clk 0:03:11]} 19. Nb5 {[%clk 0:03:15.6]} 19...
Qe6 {[%clk 0:02:59]} 20. Qf5 {[%clk 0:02:23.2]} 20... Qxf5 {[%clk 0:02:46.4]}
21. Rxf5 {[%clk 0:02:21.7]} 21... a6 {[%clk 0:02:46]} 22. Nc3 {[%clk 0:02:15.7]}
22... Rhe8 {[%clk 0:02:39.3]} 23. Re1 {[%clk 0:02:07]} 23... Nxd4 {[%clk
0:02:35.8]} 24. Rf7 {[%clk 0:01:56.8]} 24... Nc2 {[%clk 0:02:26.5]} 25. Rc1
{[%clk 0:01:41.6]} 25... Nxe3 {[%clk 0:02:20]} 26. Rxg7 {[%clk 0:01:35.6]} 26...
Rd2 {[%clk 0:02:13.3]} 27. Nd5 {[%clk 0:01:21.1]} 27... Nxd5 {[%clk 0:02:04.4]}
28. Ba3 {[%clk 0:01:06.2]} 28... Ngf4 {[%clk 0:01:43.1]} 29. Rf1 {[%clk
0:00:42.3]} 0-1

[Event "Live Chess"]
[Site "Chess.com"]
[Date "2024.06.02"]
[Round "-"]
[White "halfberg"]
[Black "Ocelot32"]
[Result "0-1"]
[WhiteElo "1883"]
[BlackElo "1388"]
[TimeControl "300"]
[EndTime "3:23:54 PDT"]
[Termination "Ocelot32 won by resignation"]

1. e4 {[%clk 0:04:56]} 1... e6 {[%clk 0:04:57.9]} 2. d4 {[%clk 0:04:54.4]} 2...
d5 {[%clk 0:04:56.8]} 3. Nc3 {[%clk 0:04:53.5]} 3... dxe4 {[%clk 0:04:55.4]} 4.
Nxe4 {[%clk 0:04:52]} 4... Nd7 {[%clk 0:04:54.3]} 5. Nf3 {[%clk 0:04:50.1]} 5...
Ngf6 {[%clk 0:04:53.3]} 6. Bd3 {[%clk 0:04:47.5]} 6... Be7 {[%clk 0:04:51.7]} 7.
Ng3 {[%clk 0:04:44.6]} 7... b6 {[%clk 0:04:50.6]} 8. O-O {[%clk 0:04:42.9]} 8...
Bb7 {[%clk 0:04:49.8]} 9. c4 {[%clk 0:04:41]} 9... O-O {[%clk 0:04:48]} 10. Ne5
{[%clk 0:04:31.6]} 10... c5 {[%clk 0:04:43.3]} 11. Nxd7 {[%clk 0:04:19.2]} 11...
Qxd7 {[%clk 0:04:40.6]} 12. dxc5 {[%clk 0:04:07.1]} 12... Bxc5 {[%clk 0:04:35]}
13. Qc2 {[%clk 0:04:00]} 13... Qc6 {[%clk 0:04:32.3]} 14. Ne4 {[%clk 0:03:51.8]}
14... Nxe4 {[%clk 0:04:26.7]} 15. Bxe4 {[%clk 0:03:47.5]} 15... Qxe4 {[%clk
0:04:25.5]} 16. Qxe4 {[%clk 0:03:44.9]} 16... Bxe4 {[%clk 0:04:24.1]} 0-1

[Event "Live Chess"]
[Site "Chess.com"]
[Date "2024.06.02"]
[Round "-"]
[White "MagnersCarlsberg2870"]
[Black "WilliamofOrange16th"]
[Result "1-0"]
[WhiteElo "1781"]
[BlackElo "1987"]
[TimeControl "300"]
[EndTime "3:24:03 PDT"]
[Termination "MagnersCarlsberg2870 won by resignation"]

1. d4 {[%clk 0:04:56.7]} 1... Nf6 {[%clk 0:04:56.2]} 2. Nf3 {[%clk 0:04:55.8]}
2... g6 {[%clk 0:04:55.4]} 3. Nc3 {[%clk 0:04:54.7]} 3... Bg7 {[%clk 0:04:55.3]}
4. e4 {[%clk 0:04:53.7]} 4... d6 {[%clk 0:04:54.6]} 5. h3 {[%clk 0:04:52.9]}
5... Nbd7 {[%clk 0:04:52.9]} 6. Bc4 {[%clk 0:04:50]} 6... O-O {[%clk 0:04:51.2]}
7. e5 {[%clk 0:04:49.1]} 7... dxe5 {[%clk 0:04:50.3]} 8. dxe5 {[%clk 0:04:48.4]}
8... Ne8 {[%clk 0:04:49.5]} 9. e6 {[%clk 0:04:47.4]} 9... fxe6 {[%clk
0:04:48.7]} 10. Ng5 {[%clk 0:04:43.1]} 10... Ndf6 {[%clk 0:04:44.8]} 11. Qxd8
{[%clk 0:04:40.6]} 1-0

[Event "Live Chess"]
[Site "Chess.com"]
[Date "2024.06.02"]
[Round "-"]
[White "MellowAesthetic"]
[Black "Thebigsqueeze"]
[Result "0-1"]
[WhiteElo "2075"]
[BlackElo "2273"]
[TimeControl "300"]
[EndTime "3:24:05 PDT"]
[Termination "Thebigsqueeze won on time"]

1. e4 {[%clk 0:04:57.5]} 1... e6 {[%clk 0:04:58.1]} 2. d4 {[%clk 0:04:56.2]}
2... d5 {[%clk 0:04:57]} 3. Nd2 {[%clk 0:04:55.9]} 3... Nc6 {[%clk 0:04:53.9]}
4. Ngf3 {[%clk 0:04:54.3]} 4... Nf6 {[%clk 0:04:51.9]} 5. e5 {[%clk 0:04:53.8]}
5... Nd7 {[%clk 0:04:51.3]} 6. c4 {[%clk 0:04:53]} 6... dxc4 {[%clk 0:04:49.1]}
7. Nxc4 {[%clk 0:04:52.1]} 7... Nb6 {[%clk 0:04:48.3]} 8. a3 {[%clk 0:04:50.8]}
8... Qd5 {[%clk 0:04:43.3]} 9. Ne3 {[%clk 0:04:34.5]} 9... Qd7 {[%clk
0:04:35.1]} 10. Bd3 {[%clk 0:04:18]} 10... Nd5 {[%clk 0:04:33.7]} 11. O-O {[%clk
0:04:09.2]} 11... Be7 {[%clk 0:04:30.8]} 12. Qc2 {[%clk 0:03:43.3]} 12... Nf4
{[%clk 0:04:18.5]} 13. Bb5 {[%clk 0:03:38.7]} 13... a6 {[%clk 0:04:14.6]} 14.
Bxc6 {[%clk 0:03:32.6]} 14... Qxc6 {[%clk 0:04:10.4]} 15. Qxc6+ {[%clk
0:03:28.2]} 15... bxc6 {[%clk 0:04:09.8]} 16. Bd2 {[%clk 0:03:15.9]} 16... c5
{[%clk 0:04:06.6]} 17. dxc5 {[%clk 0:02:37.7]} 17... Bxc5 {[%clk 0:04:04.3]} 18.
b4 {[%clk 0:02:22.3]} 18... Be7 {[%clk 0:03:47.9]} 19. Nd4 {[%clk 0:02:12.2]}
19... Bb7 {[%clk 0:03:40.8]} 20. f3 {[%clk 0:01:18.9]} 20... c5 {[%clk
0:03:33.7]} 21. Nb3 {[%clk 0:00:53.8]} 21... cxb4 {[%clk 0:03:25]} 22. axb4
{[%clk 0:00:50.1]} 22... Rd8 {[%clk 0:03:15.8]} 23. Nc4 {[%clk 0:00:37.6]} 23...
Bd5 {[%clk 0:03:07.4]} 24. Bxf4 {[%clk 0:00:33.2]} 24... Bxc4 {[%clk 0:03:05.2]}
25. Rfb1 {[%clk 0:00:32.9]} 25... Bxb4 {[%clk 0:02:51.4]} 26. Ra4 {[%clk
0:00:32]} 26... Bd3 {[%clk 0:02:46.4]} 27. Rc1 {[%clk 0:00:22.6]} 27... Be7
{[%clk 0:02:30.5]} 28. Nc5 {[%clk 0:00:21.1]} 28... Bb5 {[%clk 0:02:24.8]} 29.
Ra2 {[%clk 0:00:17]} 29... Rc8 {[%clk 0:02:20.4]} 30. Be3 {[%clk 0:00:16.3]}
30... Rc6 {[%clk 0:02:05.8]} 31. Kf2 {[%clk 0:00:12]} 31... O-O {[%clk
0:02:02.3]} 32. Nb3 {[%clk 0:00:05]} 32... Rfc8 {[%clk 0:01:54.4]} 33. Rxc6
{[%clk 0:00:03.7]} 33... Rxc6 {[%clk 0:01:53.2]} 34. Nd4 {[%clk 0:00:03.6]}
34... Rc8 {[%clk 0:01:48.5]} 35. Nxb5 {[%clk 0:00:02.7]} 35... axb5 {[%clk
0:01:47.5]} 36. Rb2 {[%clk 0:00:02.6]} 36... b4 {[%clk 0:01:46.5]} 37. Bd2
{[%clk 0:00:02.5]} 37... Rb8 {[%clk 0:01:43.5]} 38. Ke3 {[%clk 0:00:02.4]} 38...
f6 {[%clk 0:01:39.7]} 39. exf6 {[%clk 0:00:01.3]} 39... gxf6 {[%clk 0:01:38.9]}
40. Rb3 {[%clk 0:00:01.2]} 40... Kf7 {[%clk 0:01:30.3]} 41. Kd3 {[%clk
0:00:01.1]} 41... Rd8+ {[%clk 0:01:28.4]} 42. Ke3 {[%clk 0:00:00.3]} 42... Bc5+
{[%clk 0:01:25.7]} 0-1

[Event "Live Chess"]
[Site "Chess.com"]
[Date "2024.06.02"]
[Round "-"]
[White "JohanKjeldahl"]
[Black "nyclone"]
[Result "1-0"]
[WhiteElo "1807"]
[BlackElo "1148"]
[TimeControl "300"]
[EndTime "3:24:07 PDT"]
[Termination "JohanKjeldahl won by resignation"]

1. e4 {[%clk 0:04:57.8]} 1... e6 {[%clk 0:04:59.9]} 2. d4 {[%clk 0:04:56.2]}
2... b6 {[%clk 0:04:58.2]} 3. Bd3 {[%clk 0:04:53.6]} 3... Bb7 {[%clk 0:04:56.3]}
4. Nf3 {[%clk 0:04:52.8]} 4... Nf6 {[%clk 0:04:53]} 5. Qe2 {[%clk 0:04:51.6]}
5... d5 {[%clk 0:04:50]} 6. e5 {[%clk 0:04:45.5]} 6... Nfd7 {[%clk 0:04:48.8]}
7. O-O {[%clk 0:04:43.7]} 7... c5 {[%clk 0:04:45.1]} 8. c3 {[%clk 0:04:42.7]}
8... cxd4 {[%clk 0:04:42.3]} 9. cxd4 {[%clk 0:04:40.9]} 9... Be7 {[%clk
0:04:32.3]} 10. Nc3 {[%clk 0:04:39.3]} 10... a6 {[%clk 0:04:24.5]} 11. Bf4
{[%clk 0:04:35.5]} 11... b5 {[%clk 0:04:15.4]} 12. Rac1 {[%clk 0:04:32.4]} 12...
Nf8 {[%clk 0:03:45.6]} 13. Qd2 {[%clk 0:04:22.9]} 13... Ng6 {[%clk 0:03:42]} 14.
Bg3 {[%clk 0:04:21.2]} 14... Bh4 {[%clk 0:03:28.1]} 15. Nxh4 {[%clk 0:04:14.8]}
15... Nxh4 {[%clk 0:03:24.8]} 16. f4 {[%clk 0:04:08.9]} 16... Nf5 {[%clk
0:03:18.3]} 17. Bxf5 {[%clk 0:04:04.7]} 17... exf5 {[%clk 0:03:17.3]} 18. Qd3
{[%clk 0:04:01.7]} 18... g6 {[%clk 0:03:15.9]} 19. Nd1 {[%clk 0:03:54.9]} 19...
O-O {[%clk 0:03:07.7]} 20. Ne3 {[%clk 0:03:44.6]} 20... f6 {[%clk 0:02:58.2]}
21. Bh4 {[%clk 0:03:38.2]} 21... Qb6 {[%clk 0:02:47.4]} 22. Bxf6 {[%clk
0:03:32.8]} 22... Rxf6 {[%clk 0:02:46.1]} 23. exf6 {[%clk 0:03:31.1]} 23... Qxf6
{[%clk 0:02:46]} 24. Rc7 {[%clk 0:03:26.2]} 24... Bc6 {[%clk 0:02:16.2]} 25. Rc1
{[%clk 0:03:20.2]} 25... Qd6 {[%clk 0:01:59.4]} 26. R7xc6 {[%clk 0:03:16.2]}
26... Nxc6 {[%clk 0:01:58.3]} 27. Qc3 {[%clk 0:03:11]} 27... Rc8 {[%clk
0:01:53.3]} 28. Qc5 {[%clk 0:03:07.2]} 28... Qxf4 {[%clk 0:01:48.3]} 29. Nxd5
{[%clk 0:03:03.8]} 29... Qg5 {[%clk 0:00:26.7]} 30. Nb6 {[%clk 0:02:56.3]} 30...
Rc7 {[%clk 0:00:23.6]} 31. Qd5+ {[%clk 0:02:50.4]} 31... Kg7 {[%clk 0:00:20.4]}
32. Rxc6 {[%clk 0:02:41.6]} 32... Rxc6 {[%clk 0:00:19.2]} 33. Qxc6 {[%clk
0:02:39]} 33... Kh6 {[%clk 0:00:16.7]} 34. Qc3 {[%clk 0:02:31.1]} 34... Qf4
{[%clk 0:00:14.3]} 35. Nd5 {[%clk 0:02:25.5]} 35... Qe4 {[%clk 0:00:12.9]} 36.
Nf6 {[%clk 0:02:22.8]} 36... Qxd4+ {[%clk 0:00:12]} 37. Qxd4 {[%clk 0:02:20.6]}
37... Kg7 {[%clk 0:00:10.5]} 1-0

[Event "Live Chess"]
[Site "Chess.com"]
[Date "2024.06.02"]
[Round "-"]
[White "booktrunk"]
[Black "AlexanderMatlak"]
[Result "0-1"]
[WhiteElo "1500"]
[BlackElo "2395"]
[TimeControl "300"]
[EndTime "3:24:14 PDT"]
[Termination "AlexanderMatlak won by resignation"]

1. d4 {[%clk 0:04:54.2]} 1... Nf6 {[%clk 0:04:58.7]} 2. Nc3 {[%clk 0:04:46]}
2... d5 {[%clk 0:04:57.1]} 3. Bf4 {[%clk 0:04:41.2]} 3... g6 {[%clk 0:04:55.8]}
4. Nf3 {[%clk 0:04:39.3]} 4... Bg7 {[%clk 0:04:53.9]} 5. Nb5 {[%clk 0:04:35.9]}
5... Na6 {[%clk 0:04:52.5]} 6. e3 {[%clk 0:04:34.1]} 6... O-O {[%clk 0:04:51.5]}
7. Bd3 {[%clk 0:04:30.1]} 7... c6 {[%clk 0:04:50.5]} 8. Nc3 {[%clk 0:04:28]}
8... Nc7 {[%clk 0:04:50.1]} 9. O-O {[%clk 0:04:26.4]} 9... Bg4 {[%clk
0:04:47.7]} 10. h3 {[%clk 0:04:24.6]} 10... Bxf3 {[%clk 0:04:46.7]} 11. Qxf3
{[%clk 0:04:23.1]} 11... Ne6 {[%clk 0:04:46.3]} 12. Bh2 {[%clk 0:04:21.3]} 12...
c5 {[%clk 0:04:43.9]} 13. dxc5 {[%clk 0:04:19.4]} 13... Nxc5 {[%clk 0:04:43.8]}
14. Be2 {[%clk 0:04:18.4]} 14... Nce4 {[%clk 0:04:40.2]} 15. Nxe4 {[%clk
0:04:09.3]} 15... Nxe4 {[%clk 0:04:40.1]} 16. c3 {[%clk 0:04:03.2]} 16... Nd2
{[%clk 0:04:39.1]} 17. Qf4 {[%clk 0:03:59.4]} 17... Nxf1 {[%clk 0:04:37.7]} 18.
Kxf1 {[%clk 0:03:59.3]} 18... e5 {[%clk 0:04:34.3]} 19. Qf3 {[%clk 0:03:55.8]}
19... Qb6 {[%clk 0:04:25.4]} 20. b3 {[%clk 0:03:53.4]} 20... Rad8 {[%clk
0:04:20.2]} 21. Rd1 {[%clk 0:03:51.7]} 21... d4 {[%clk 0:04:18.6]} 22. exd4
{[%clk 0:03:50]} 22... exd4 {[%clk 0:04:18.5]} 23. c4 {[%clk 0:03:46.2]} 23...
Rfe8 {[%clk 0:04:13.9]} 24. Bd3 {[%clk 0:03:44.9]} 24... Be5 {[%clk 0:04:03.1]}
25. g3 {[%clk 0:03:41.5]} 25... Rd6 {[%clk 0:03:35.2]} 26. Rd2 {[%clk
0:03:36.9]} 26... Rf6 {[%clk 0:03:16.5]} 27. Qe4 {[%clk 0:03:32.7]} 27... Rfe6
{[%clk 0:03:12.9]} 28. Qf3 {[%clk 0:03:31.1]} 28... Qb4 {[%clk 0:03:07.9]} 29.
Re2 {[%clk 0:03:27.6]} 29... Bf6 {[%clk 0:03:00.3]} 30. Qd5 {[%clk 0:03:20.6]}
30... Rxe2 {[%clk 0:02:53.9]} 31. Bxe2 {[%clk 0:03:19.2]} 31... Qd2 {[%clk
0:02:52]} 32. Qf3 {[%clk 0:03:17.8]} 32... Kg7 {[%clk 0:02:42.9]} 33. g4 {[%clk
0:03:16.3]} 33... Qc3 {[%clk 0:02:41.7]} 34. Qd5 {[%clk 0:03:09.8]} 34... Qc1+
{[%clk 0:02:31.3]} 0-1

[Event "Live Chess"]
[Site "Chess.com"]
[Date "2024.06.02"]
[Round "-"]
[White "GerardATHart"]
[Black "ACM42"]
[Result "0-1"]
[WhiteElo "1368"]
[BlackElo "2178"]
[TimeControl "300"]
[EndTime "3:24:30 PDT"]
[Termination "ACM42 won by resignation"]

1. e4 {[%clk 0:04:56.6]} 1... e6 {[%clk 0:04:58.5]} 2. d4 {[%clk 0:04:54.8]}
2... d5 {[%clk 0:04:57.2]} 3. Nd2 {[%clk 0:04:53.5]} 3... Nf6 {[%clk 0:04:56.4]}
4. Ngf3 {[%clk 0:04:51.5]} 4... dxe4 {[%clk 0:04:52.8]} 5. Ng5 {[%clk
0:04:49.8]} 5... Qxd4 {[%clk 0:04:51.8]} 6. c3 {[%clk 0:04:46.1]} 6... Qe5
{[%clk 0:04:41.3]} 7. Qe2 {[%clk 0:04:38.3]} 7... Qxg5 {[%clk 0:04:40]} 8. Nxe4
{[%clk 0:04:17.3]} 8... Qf5 {[%clk 0:04:35.6]} 9. g4 {[%clk 0:04:08.3]} 9...
Qxe4 {[%clk 0:04:34]} 10. Qxe4 {[%clk 0:04:06.8]} 10... Nxe4 {[%clk 0:04:33.9]}
11. Bg2 {[%clk 0:04:04.3]} 11... Nc5 {[%clk 0:04:33.1]} 12. Be3 {[%clk
0:04:02.6]} 12... Nbd7 {[%clk 0:04:27.6]} 13. O-O-O {[%clk 0:04:01.1]} 13... Nb6
{[%clk 0:04:25.1]} 14. Bf4 {[%clk 0:03:53.4]} 14... c6 {[%clk 0:04:20.3]} 15.
Rhe1 {[%clk 0:03:29.5]} 15... Be7 {[%clk 0:04:18.8]} 16. Bg3 {[%clk 0:03:20.3]}
16... O-O {[%clk 0:04:16.8]} 17. h4 {[%clk 0:03:16.7]} 17... Bd7 {[%clk
0:04:05.3]} 18. f4 {[%clk 0:03:10.9]} 18... Rad8 {[%clk 0:04:04.2]} 19. g5
{[%clk 0:03:07.6]} 19... Bc8 {[%clk 0:04:02.5]} 20. Bf3 {[%clk 0:03:05.2]} 20...
Nd3+ {[%clk 0:04:00.6]} 0-1

[Event "Live Chess"]
[Site "Chess.com"]
[Date "2024.06.02"]
[Round "-"]
[White "Queensandpawns"]
[Black "wadsy27"]
[Result "0-1"]
[WhiteElo "2240"]
[BlackElo "2575"]
[TimeControl "300"]
[EndTime "3:24:33 PDT"]
[Termination "wadsy27 won by resignation"]

1. e4 {[%clk 0:04:58.4]} 1... c5 {[%clk 0:04:58.4]} 2. Nf3 {[%clk 0:04:56.6]}
2... e5 {[%clk 0:04:57.7]} 3. Nxe5 {[%clk 0:04:55.4]} 3... Nc6 {[%clk
0:04:55.4]} 4. Nf3 {[%clk 0:04:54.1]} 4... d5 {[%clk 0:04:51.7]} 5. exd5 {[%clk
0:04:53.3]} 5... Qxd5 {[%clk 0:04:50.8]} 6. Nc3 {[%clk 0:04:53.2]} 6... Qe6+
{[%clk 0:04:47.7]} 7. Be2 {[%clk 0:04:52.6]} 7... Bd7 {[%clk 0:04:45.4]} 8. O-O
{[%clk 0:04:51.3]} 8... O-O-O {[%clk 0:04:44.6]} 9. Re1 {[%clk 0:04:50.8]} 9...
Bd6 {[%clk 0:04:33.3]} 10. d4 {[%clk 0:04:48.8]} 10... cxd4 {[%clk 0:04:29.6]}
11. Nxd4 {[%clk 0:04:48.7]} 11... Nxd4 {[%clk 0:04:15.4]} 12. Qxd4 {[%clk
0:04:48.6]} 12... Qe5 {[%clk 0:04:03.9]} 13. Qxe5 {[%clk 0:04:35.5]} 13... Bxe5
{[%clk 0:04:03.8]} 14. Be3 {[%clk 0:04:35.4]} 14... Kb8 {[%clk 0:04:00.5]} 15.
Rad1 {[%clk 0:04:34.3]} 15... Nf6 {[%clk 0:03:59]} 16. Bf3 {[%clk 0:04:31]}
16... Bxc3 {[%clk 0:03:47.2]} 17. bxc3 {[%clk 0:04:30.3]} 17... Bc6 {[%clk
0:03:43.7]} 18. Bxc6 {[%clk 0:04:16.5]} 18... Rxd1 {[%clk 0:03:38.7]} 19. Rxd1
{[%clk 0:04:16.4]} 19... bxc6 {[%clk 0:03:37.8]} 20. Bf4+ {[%clk 0:04:09.5]}
20... Kb7 {[%clk 0:03:28.3]} 21. c4 {[%clk 0:04:08.9]} 21... Re8 {[%clk
0:03:22.7]} 22. g4 {[%clk 0:04:07.1]} 22... Re4 {[%clk 0:03:19.8]} 23. g5 {[%clk
0:03:47.8]} 23... Rxf4 {[%clk 0:03:13.1]} 24. gxf6 {[%clk 0:03:47.7]} 24... Rxf6
{[%clk 0:03:12.7]} 25. Rd4 {[%clk 0:03:46.5]} 25... Kb6 {[%clk 0:03:10.9]} 26.
Rh4 {[%clk 0:03:44.8]} 26... h6 {[%clk 0:03:08.8]} 27. Kf1 {[%clk 0:03:44.4]}
27... Kc5 {[%clk 0:03:07.6]} 28. Ke2 {[%clk 0:03:44]} 28... g5 {[%clk
0:03:05.7]} 29. Rg4 {[%clk 0:03:42.5]} 29... Rd6 {[%clk 0:02:56.6]} 30. h4
{[%clk 0:03:39.5]} 30... f5 {[%clk 0:02:55]} 31. Rg1 {[%clk 0:03:36.4]} 31...
gxh4 {[%clk 0:02:45.5]} 32. Rh1 {[%clk 0:03:35.5]} 32... Rd4 {[%clk 0:02:43.1]}
0-1

[Event "Live Chess"]
[Site "Chess.com"]
[Date "2024.06.02"]
[Round "-"]
[White "Bunny55"]
[Black "GwaryTek"]
[Result "0-1"]
[WhiteElo "1160"]
[BlackElo "1863"]
[TimeControl "300"]
[EndTime "3:24:48 PDT"]
[Termination "GwaryTek won by resignation"]

1. e4 {[%clk 0:04:57]} 1... Nf6 {[%clk 0:04:56.9]} 2. e5 {[%clk 0:04:52.3]} 2...
Nd5 {[%clk 0:04:54.7]} 3. d4 {[%clk 0:04:50.9]} 3... d6 {[%clk 0:04:52.7]} 4.
exd6 {[%clk 0:04:46.6]} 4... cxd6 {[%clk 0:04:51.4]} 5. Nc3 {[%clk 0:04:45.6]}
5... Nxc3 {[%clk 0:04:50.1]} 6. bxc3 {[%clk 0:04:44.5]} 6... g6 {[%clk 0:04:50]}
7. Nf3 {[%clk 0:04:42.8]} 7... Bg7 {[%clk 0:04:49.9]} 8. Bd3 {[%clk 0:04:39.4]}
8... O-O {[%clk 0:04:49.8]} 9. O-O {[%clk 0:04:36.9]} 9... Nc6 {[%clk
0:04:49.7]} 10. Re1 {[%clk 0:04:33.4]} 10... Bg4 {[%clk 0:04:38.1]} 11. Be3
{[%clk 0:04:24.5]} 11... Qa5 {[%clk 0:04:32.8]} 12. Bd2 {[%clk 0:04:20.7]} 12...
Qc7 {[%clk 0:04:22.4]} 13. Rb1 {[%clk 0:04:18.9]} 13... e5 {[%clk 0:04:09.7]}
14. d5 {[%clk 0:04:15.8]} 14... Ne7 {[%clk 0:04:07.2]} 15. c4 {[%clk 0:04:13.1]}
15... f5 {[%clk 0:04:05.1]} 16. h3 {[%clk 0:04:10.9]} 16... Bxf3 {[%clk
0:04:00.4]} 17. Qxf3 {[%clk 0:04:08.6]} 17... e4 {[%clk 0:03:59.7]} 18. Bxe4
{[%clk 0:04:04.8]} 18... fxe4 {[%clk 0:03:59.6]} 19. Qxe4 {[%clk 0:04:03]} 19...
Nf5 {[%clk 0:03:55]} 20. g4 {[%clk 0:03:58.4]} 20... Nh4 {[%clk 0:03:30.4]} 21.
Bf4 {[%clk 0:03:41.2]} 21... g5 {[%clk 0:03:11.3]} 22. Bg3 {[%clk 0:03:35]}
22... Nf3+ {[%clk 0:03:09]} 23. Kg2 {[%clk 0:03:20.4]} 23... Nxe1+ {[%clk
0:03:03.6]} 24. Rxe1 {[%clk 0:03:19.2]} 24... Rf7 {[%clk 0:02:54.3]} 25. c5
{[%clk 0:03:14.4]} 25... Qxc5 {[%clk 0:02:51.6]} 26. Qe6 {[%clk 0:03:12.9]}
26... Rd8 {[%clk 0:02:47.1]} 0-1

[Event "Live Chess"]
[Site "Chess.com"]
[Date "2024.06.02"]
[Round "-"]
[White "MagnersCarlsberg2870"]
[Black "JohanKjeldahl"]
[Result "1-0"]
[WhiteElo "1790"]
[BlackElo "1798"]
[TimeControl "300"]
[EndTime "3:25:27 PDT"]
[Termination "MagnersCarlsberg2870 won by resignation"]

1. d4 {[%clk 0:04:57.6]} 1... Nf6 {[%clk 0:04:58.1]} 2. Nf3 {[%clk 0:04:56.2]}
2... e6 {[%clk 0:04:56.6]} 3. e3 {[%clk 0:04:54.8]} 3... b6 {[%clk 0:04:55.6]}
4. Bd3 {[%clk 0:04:54]} 4... Bb7 {[%clk 0:04:54.8]} 5. Nbd2 {[%clk 0:04:53.2]}
5... d5 {[%clk 0:04:53.3]} 6. Qe2 {[%clk 0:04:52]} 6... Nbd7 {[%clk 0:04:51.5]}
7. c3 {[%clk 0:04:50.1]} 7... c5 {[%clk 0:04:50.6]} 8. O-O {[%clk 0:04:48.8]}
8... Bd6 {[%clk 0:04:49.8]} 9. e4 {[%clk 0:04:47.2]} 9... dxe4 {[%clk
0:04:47.7]} 10. Nxe4 {[%clk 0:04:46.3]} 10... Nxe4 {[%clk 0:04:46.2]} 11. Bxe4
{[%clk 0:04:41.9]} 11... Bxe4 {[%clk 0:04:45.1]} 12. Qxe4 {[%clk 0:04:41.2]}
12... Nf6 {[%clk 0:04:44.2]} 13. Qc6+ {[%clk 0:04:37.4]} 13... Qd7 {[%clk
0:04:40.7]} 14. Qxa8+ {[%clk 0:04:35.7]} 14... Ke7 {[%clk 0:04:35.3]} 15. Qxh8
{[%clk 0:04:33.3]} 1-0